Workbook

Sheet DATOS
B3: Hoja de excel para el calculo de espesores de pavimento flexible, mediante una macro.
B5: Elaborada por:
B6: Ing. Ricardo Vladimir Estrada
B7: Managua, Nicaragua
B9: Procedimiento:
B10: En la pestaña "Diseño", ingrese los datos correspondientes, como son:
B11: Esal de diseño(Ejes equivalentes)
B12: Serviciabilidad
B13: Datos de suelo (CBR)
B14: Esabilidad Marshal de la Mezcla asfaltica
B15: etc.
B17: Luego de ingresar todos los datos, se procede al calculodel SN (Numero Estructural)
B18: Hacer Click en el cuadro de: Numero estructural Iterar (Para ejecutar Macro)
B19: ingresar el dato de
B20: Luego Aceptar
B22: Si no se ejecutara la macro, se puede hacer iterando, hasta lograr la igualdad en
B23: Una vez calculado el SN, se procede a proponer espesores, hasta que el SN (Calculado) sea mayor que el requerido
B25: Activar la pestaña DESARROLLADOR, en excel para ejecutar macros
B28: Se tiene que tener cierto conociminto previo, de el diseño de espesores por el metodo de la ASSHTO
B30: Dudas: Contactar a
B31: stradaric@hotmail.com

Sheet PROJECT ID
L2: Excel Diseño de Pavimento Flexible
E6: Empresa: | G6: GOBIERNO REGIONAL TUMBES
E8: Cliente: | G8: GOBIERNO REGIONAL TUMBES
E10: Descripcion del Proyecto: | G10: CARPETA AFIRMADA
E13: Ubicacion: | G13: HUASIMO - CABO INGA
E16: Ingeniero:

Sheet Diseño
C4: DISEÑO DE PAVIMENTO FLEXIBLE
D5: Diseño de espesores de Pavimento de acuerdo a:
D6: 1993 AASHTO Guide for Design of Pavements Structures
E12: DATOS:
E13: ESAL DE DISEÑO | F13: 7801.355803
E14: CONFIABILIDAD | F14: =Confiabilidad!C11 -> 0.75
E15: DESVIACION | F15: =ROUND(+IF(F14="","",-NORMSINV(F14)),3) -> -0.674
E16: SERV INICIAL (Po) | F16: ='Indice de Serviciabilidad'!G10 -> 4.2
E17: SERV FINAL (Pt) | F17: ='Indice de Serviciabilidad'!G13 -> 2
E18: DELTA PSI | F18: =F16-F17 -> 2.2
E19: So | F19: =So!F9 -> 0.45
E21: DATOS DE SUELO
E22: CBR BASE (%) | F22: 80
E23: CBR SUBBASE (%) | F23: 30 | Y23: Adoquin
E24: CBR SUBRASANTE (%) | F24: 5 | Y24: Asfalto
E25: ESTABILIO MARSHALL (N) | F25: 9000 | Y25: Base Granular
E26: F´c (Mpa) | F26: 4.2 | Y26: Base cementada
Y27: Sub Base Granular
E28: Modulo Resiliente (Psi) | F28: =+IF(F24="","",2555*POWER(F24,0.64)) -> 7157.011371 | Y28: Tratamiento simple
Y29: Doble Tratamiento
E40: =ROUND(LOG(F13),3) -> 3.892 | F40: = | G40: =ROUND((F15*F19+9.36*LOG(J40+1)-0.2+(LOG(F18/(4.2-1.5)))/(0.4+1094/((J40+1)^5.19))+2.32*LOG(F28)-8.07),3) -> 3.892 | I40: =IF(E40=G40,"SN","ITERAR") -> SN | J40: 1.3826
J41: =IF(E40>G40,"AUMENTAR",IF(E40<G40,"DISMINUIR",IF(E40=G40,"","ERROR"))) -> 
E43: CAPA DE MATERIAL | F43: Coeficiente de Capa (a) | G43: Coeficiente de Drenaje (m) | H43: ESPESOR (Pulg) | I43: Numero Estructural de Capa (SN) | J43: ESPESOR (cm) | K43: Numero Estructural de Capa (SN) | P43: Espesor en cm (Calculado) | Q43: Espesor en cm (Propuesto)
E45: Base Granular | F45: =IF(E45="Adoquin",0.44,IF(E45="Asfalto",POWER($F$25,0.441)*0.0078,IF(E45="Base Granular",POWER($F$22,0.32)*0.032,IF(E45="Sub Base Granular",POWER($F$23,0.19)*0.058,IF(E45="Tratamiento simple",0,IF(E45="Doble Tratamiento",0,IF(E45="Base cementada",POWER($F$26,0.514)*0.0918,""))))))) -> 0.13005851 | G45: 1 | H45: 8 | I45: =IF(F45>=0,ROUND(F45*G45*H45,3),"") -> 1.04 | J45: 20 | K45: =F45*G45*J45 -> 2.601170199 | P45: =H45*2.54 -> 20.32 | Q45: =J45 -> 20
E46: Base Granular | F46: =IF(E46="Adoquin",0.44,IF(E46="Asfalto",POWER($F$25,0.441)*0.0078,IF(E46="Base Granular",POWER($F$22,0.32)*0.032,IF(E46="Sub Base Granular",POWER($F$23,0.19)*0.058,IF(E46="Tratamiento simple",0,IF(E46="Doble Tratamiento",0,IF(E46="Base cementada",POWER($F$26,0.514)*0.0918,""))))))) -> 0.13005851 | G46: 1 | H46: 2 | I46: =ROUND(F46*G46*H46,3) -> 0.26 | J46: 5 | K46: =F46*G46*J46 -> 0.6502925499 | P46: =H46*2.54 -> 5.08 | Q46: =J46 -> 5
E47: Base Granular | F47: 0.13005851 | G47: 1 | H47: 2 | I47: 0.26 | J47: 5 | K47: 0.6502925499 | P47: 5.08 | Q47: 5
I48: =IF(F48>0,ROUND(F48*G48*H48,3),"") ->  | K48: =IF(F48>0,F48*G48*J48,"") -> 
I49: =IF(F49>0,ROUND(F49*G49*H49,3),"") ->  | K49: =IF(F49>0,F49*G49*J49,"") -> 
I50: =IF(F50>0,ROUND(F50*G50*H50,3),"") -> 
G53: SN (Calculado) | I53: =ROUND(SUM(I45:I52),3) -> 1.56 | K53: =ROUND(SUM(K45:K52),3) -> 3.902
G54: SN (Requerido) | I54: =J40 -> 1.3826 | K54: =I54*2.54 -> 3.511804
I55: =IF(I53>=J40,"OK","AUMENTAR ESPESORES") -> OK | K55: =IF(K53>=J40*2.54,"OK","AUMENTAR ESPESORES") -> OK

Sheet Confiabilidad
B2: AASHTO-93
B3: PAG. 99
B4: Clasificacion | C4: Nivel de confiabilidad recomendado (R)
B5: funcional | C5: Urbano | F5: Rural
B6: Autopista y carreteras interestatales, y otras vias | C6: 85 | D6: - | E6: 99.9 | F6: 80 | G6: - | H6: 99.9
B7: Arterias principales | C7: 80 | D7: - | E7: 99 | F7: 75 | G7: - | H7: 95
B8: Colectoras | C8: 80 | D8: - | E8: 95 | F8: 75 | G8: - | H8: 95
B9: Locales | C9: 50 | D9: - | E9: 80 | F9: 50 | G9: - | H9: 80
B11: Confiabilidad | C11: 0.75
B13: Generalmente ante los incrementos de los volumenes de tráfico, de las dificultades para diversificar
B14: el tráfico y de las espectativas de disponibilidad del público, debe minimizarse el riesgo de que los
B15: pavimentos no se comporten adecuadamente. Este objetivo se alcanza seleccionando niveles de
B16: confiabilidad más altos. La Tabla No. 1 presenta los niveles de confiabilidad recomendados para
B17: varias clasificaciones funcionales.

Sheet Desviacion Estandar
B1: AASHTO-93
B2: PAG. 84
B3: CONFIABILIDAD Y DESVIACION ESTÁNDAR
B4: Confiabilidad (R%) | C4: Desviacion normal estándar (ZR)
B5: 50 | C5: 0
B6: 60 | C6: -0.253
B7: 70 | C7: -0.524
B8: 75 | C8: -0.674
B9: 80 | C9: -0.841
B10: 85 | C10: -1.037
B11: 90 | C11: -1.282
B12: 91 | C12: -1.34
B13: 92 | C13: -1.405
B14: 93 | C14: -1.476
B15: 94 | C15: -1.555
B16: 95 | C16: -1.645
B17: 96 | C17: -1.751
B18: 97 | C18: -1.881
B19: 98 | C19: -2.054
B20: 99 | C20: -2.327
B21: 99.9 | C21: -3.09
B22: 99.99 | C22: -3.75
B23: La selección de un nivel apropiado de confiabilidad para el diseño de una vialidad particular, depende
B24: primariamente del uso del proyectado y de las consecuencias (riesgos)

Sheet Indice de Serviciabilidad
B2: AASHTO-93
B3: PAG. 28
B4: Valor Indice Serviciabilidad (PSI)
B5: Para el diseño es necesario seleccionar un índices de serviciabilidad inicial y terminal.
B6: El índice de Serviciabilidad terminal o final de diseño deberá ser tal que culminado el periodo de vida
B7: proyectado, la vía (superficie de rodadura) ofrezca una adecuada serviciabilidad
B9: - Indice de serviciabilidad inicial (pi)
B10: 4.2 | D10: pavimentos flexible | F10: Pi | G10: 4.2
B11: 4.5 | D11: pavimentos rígidos
B12: - Indice de serviciabilidad final (pt )
B13: 2.5 ó 3.0 | D13: carretras principales | F13: Pt | G13: 2
B14: 2 | D14: carreteras con clasificación menor
B15: 1.5 | D15: carreteras relativamente menores , donde las condiciones económicas
D16: determinan que gastos iniciales deben ser mantenidos bajos

Sheet So
C3: AASHTO-93
C4: PAG. 84
C5: Criterio para la selección de la Desviacion estandar total (So)
C6: 0.3 | D6: - | E6: 0.4 | F6: Pavimentos rigidos
C7: 0.4 | D7: - | E7: 0.5 | F7: Pavimentos flexibles
E9: So | F9: 0.45

Sheet Coef (a)
A1: 1 KN | B1: 1000 NEWTON
A2: 1000 NEWTON | B2: =1000*0.101972 -> 101.972
A3: 1 NEWTON | B3: 0.101972
A4: Coeficiente Estructural Capa Asfáltica | E4: Coeficiente Estructural Bases Tratadas con Asfálto | I4: Coeficiente Estructural Capa Base Granular Triturada | L4: Coeficiente Estructural Capa Sub Base Granular
A5: Estabilidad Marshall (N) | B5: Estabilidad Marshall (Kg) | C5: Coeficiente Estructural (a1) | E5: Estabilidad Marshall (N) | F5: Estabilidad Marshall (Kg) | G5: Coeficiente Estructural (a2) | I5: Valor CBR | J5: Coeficiente Estructural (a3) | L5: Valor CBR | M5: Coeficiente Estructural (a4)
A6: 5000 | B6: =+A6*$B$3 -> 509.86 | C6: 0.33 | E6: 1000 | F6: =+E6*$B$3 -> 101.972 | G6: 0.12 | I6: 40 | J6: 0.11 | L6: 10 | M6: 0.08
A7: 6000 | B7: =+A7*$B$3 -> 611.832 | C7: 0.36 | E7: 2000 | F7: =+E7*$B$3 -> 203.944 | G7: 0.17 | I7: 50 | J7: 0.12 | L7: 20 | M7: 0.09
A8: 7000 | B8: 713.804 | C8: 0.39 | E8: 3000 | F8: 305.916 | G8: 0.2 | I8: 60 | J8: 0.12 | L8: 30 | M8: 0.11
A9: 8000 | B9: 815.776 | C9: 0.41 | E9: 4000 | F9: 407.888 | G9: 0.22 | I9: 70 | J9: 0.13 | L9: 40 | M9: 0.12
A10: 9000 | B10: 917.748 | C10: 0.43 | E10: 5000 | F10: 509.86 | G10: 0.25 | I10: 80 | J10: 0.13 | L10: 50 | M10: 0.12
A11: 10000 | B11: 1019.72 | C11: 0.45 | E11: 6000 | F11: 611.832 | G11: 0.27 | I11: 90 | J11: 0.14 | L11: 60 | M11: 0.13
E12: 7000 | F12: 713.804 | G12: 0.29 | I12: 100 | J12: 0.14
E13: 8000 | F13: 815.776 | G13: 0.31
A15: 612 | B15: =+IF(A15="","",IF(A15=0,0,IF(A15<B7,C6,IF(A15<B8,C7,IF(A15<B9,C8,IF(A15<B10,C9,IF(A15<B11,C10,IF(A15>1019,C11)))))))) -> 0.36 | E15: 500 | F15: =+IF(E15="","",IF(E15=0,0,IF(E15<F7,G6,IF(E15<F8,G7,IF(E15<F9,G8,IF(E15<F10,G9,IF(E15<F11,G10,IF(E15<F12,G11,IF(E15<F13,G12,IF(E15>F13,G13)))))))))) -> 0.22 | I15: 90 | J15: =+IF(I15="","",IF(I15=0,0,IF(I15<I7,J6,IF(I15<I8,J7,IF(I15<I9,J8,IF(I15<I10,J9,IF(I15<I11,J10,IF(I15<I12,J11,IF(I15>99,J12))))))))) -> 0.14 | L15: 45 | M15: =+IF(L15="","",IF(L15=0,0,IF(L15<L7,M6,IF(L15<L8,M7,IF(L15<L9,M8,IF(L15<L10,M9,IF(L15<L11,M10,IF(L15>59,M11)))))))) -> 0.12
A17: 3500 | B17: =+IF(A17="","",IF(A17=0,0,IF(A17<B7,C6,IF(A17<B8,C7,IF(A17<B9,C8,IF(A17<B10,C9,IF(A17<B11,C10,IF(A17>1019,C11)))))))) -> 0.45 | E17: 500 | F17: =+IF(E17="","",IF(E17=0,0,IF(E17<F7,G6,IF(E17<F8,G7,IF(E17<F9,G8,IF(E17<F10,G9,IF(E17<F11,G10,IF(E17<F12,G11,IF(E17<F13,G12,IF(E17>F13,G13)))))))))) -> 0.22 | I17: 90 | J17: =+IF(I17="","",IF(I17=0,0,IF(I17<I7,J6,IF(I17<I8,J7,IF(I17<I9,J8,IF(I17<I10,J9,IF(I17<I11,J10,IF(I17<I12,J11,IF(I17>99,J12))))))))) -> 0.14 | L17: 45 | M17: =+IF(L17="","",IF(L17=0,0,IF(L17<L7,M6,IF(L17<L8,M7,IF(L17<L9,M8,IF(L17<L10,M9,IF(L17<L11,M10,IF(L17>59,M11)))))))) -> 0.12
A19: % de Deterioro de la Vía | B19: 10
A21: Coef. De Reducción sup. De Rodadura | B21: =+IF($B$15="","",(B15*(1-($B$19/100)))) -> 0.324 | E21: Coef. De Reducción Base Asf. Estab. | F21: =+IF($F$15="","",(F15*(1-($B$19/100)))) -> 0.198 | I21: Coef. De Reducción Base Gran. Trit. | J21: =+IF($J$15="","",(J15*(1-($B$19/100)))) -> 0.126 | L21: Coef. De Reducción Sub Base Granular | M21: =+IF($M$15="","",(M15*(1-($B$19/100)))) -> 0.108
A23: Coef. De Reducción sup. De Rod. Propuesta | B23: =+IF($B$17="","",(B17*(1-($B$19/100)))) -> 0.405 | E23: Coef. De Reducción Base Asf. Estab. Propuesta | F23: =+IF($F$17="","",(F17*(1-($B$19/100)))) -> 0.198 | I23: Coef. De Reducción Base Gran. Trit. Propuesta | J23: =+IF($J$17="","",(J17*(1-($B$19/100)))) -> 0.126 | L23: Coef. De Reducción Sub Base Granular Propuesta | M23: =+IF($M$17="","",(M17*(1-($B$19/100)))) -> 0.108

Sheet m
A3: Calidad de Drenaje | E3: Tiempo de Eliminación del Agua en
A4: Excelente | E4: 2 Horas
A5: Bueno | E5: 1 Día
A6: Regular | E6: 1 Semana
A7: Pobre | E7: 1 Mes
A8: Malo | E8: El Agua no Drena
A9: Calidad de Drenaje | B9: Porcentaje de tiempo anual en que la estructura del pavimento está expuesta a niveles cercanos a saturación
B10: 0 | C10: 0.01 | D10: 0.01 | E10: 0.05 | F10: 0.05 | G10: 0.25 | H10: 0.25
A11: Excelente | B11: 1.4 | C11: 1.35 | D11: 1.35 | E11: 1.3 | F11: 1.3 | G11: 1.2 | H11: 1.2
A12: Bueno | B12: 1.35 | C12: 1.25 | D12: 1.25 | E12: 1.15 | F12: 1.15 | G12: 1 | H12: 1
A13: Regular | B13: 1.25 | C13: 1.15 | D13: 1.15 | E13: 1.05 | F13: 1 | G13: 0.8 | H13: 0.8
A14: Pobre | B14: 1.15 | C14: 1.05 | D14: 1.05 | E14: 0.8 | F14: 0.8 | G14: 0.6 | H14: 0.6
A15: Malo | B15: 1.05 | C15: 0.95 | D15: 0.95 | E15: 0.75 | F15: 0.75 | G15: 0.4 | H15: 0.4
A17: Calidad de Drenaje | B17: Excelente | C17: Bueno | E17: Coef.de Drenaje BG | F17: =+IF(B17="","",IF(B17=A21,A22,IF(B17=C21,C22,IF(B17=E21,E22,IF(B17=G21,G22,IF(B17=I21,I22)))))) -> 1.242460896
A18: Porcentaje de Exposición BG | B18: 0.1643835616 | E18: Coef. de Drenaje SBG | F18: =+IF(C17="","",IF(C17=A21,A23,IF(C17=C21,C23,IF(C17=E21,E23,IF(C17=G21,G23,IF(C17=I21,I23)))))) -> 1.063994846
A19: Porcentaje de Exposición SBG | B19: 0.1643835616
A21: Excelente | C21: Bueno | E21: Regular | G21: Pobre | I21: Malo
A22: =IF(B18="","",IF(B17=A21,27860*B18^6-23600*B18^5+7844.2*B18^4-1294.7*B18^3+110.52*B18^2-5.079*B18+1.3972,"")) -> 1.242460896 | B22: B.G. | C22: =IF(B18="","",IF(B17=C21,52379*B18^6-44691*B18^5+15008*B18^4-2514.7*B18^3+219.67*B18^2-10.185*B18+1.3447,"")) ->  | D22: B.G. | E22: =IF(B18="","",IF(B17=E21,59060*B18^6-49708*B18^5+16369*B18^4-2664.1*B18^3+222.4*B18^2-10.131*B18+1.2443,"")) ->  | F22: B.G. | G22: =IF(B18="","",IF(B17=G21,-6727.6*B18^6+224.26*B18^5+2466.6*B18^4-1015.5*B18^3+165*B18^2-12.864*B18+1.1575,"")) ->  | H22: B.G. | I22: =IF(B18="","",IF(B17=I21,24110*B18^6-23109*B18^5+8916.2*B18^4-1764.2*B18^3+187.78*B18^2-11.882*B18+1.0526,"")) ->  | J22: B.G.
A23: =IF(B19="","",IF(C17=A21,27860*B19^6-23600*B19^5+7844.2*B19^4-1294.7*B19^3+110.52*B19^2-5.079*B19+1.3972,"")) ->  | B23: S.B.G | C23: =IF(B19="","",IF(C17=C21,52379*B19^6-44691*B19^5+15008*B19^4-2514.7*B19^3+219.67*B19^2-10.185*B19+1.3447,"")) -> 1.063994846 | D23: S.B.G | E23: =IF(B19="","",IF(C17=E21,59060*B19^6-49708*B19^5+16369*B19^4-2664.1*B19^3+222.4*B19^2-10.131*B19+1.2443,"")) ->  | F23: S.B.G | G23: =IF(B19="","",IF(C17=G21,-6727.6*B19^6+224.26*B19^5+2466.6*B19^4-1015.5*B19^3+165*B19^2-12.864*B19+1.1575,"")) ->  | H23: S.B.G | I23: =IF(B19="","",IF(C17=I21,24110*B19^6-23109*B19^5+8916.2*B19^4-1764.2*B19^3+187.78*B19^2-11.882*B19+1.0526,"")) ->  | J23: S.B.G
A24: 0 | B24: 1.4 | C24: 0 | D24: 1.35 | E24: 0 | F24: 1.25 | G24: 0 | H24: 1.15 | I24: 0 | J24: 1.05
A25: 0.002 | B25: 1.39 | C25: 0.002 | D25: 1.33 | E25: 0.002 | F25: 1.23 | G25: 0.002 | H25: 1.13 | I25: 0.002 | J25: 1.03
A26: 0.004 | B26: 1.38 | C26: 0.004 | D26: 1.31 | E26: 0.004 | F26: 1.21 | G26: 0.004 | H26: 1.11 | I26: 0.004 | J26: 1.01
A27: 0.006 | B27: 1.37 | C27: 0.006 | D27: 1.29 | E27: 0.006 | F27: 1.19 | G27: 0.006 | H27: 1.09 | I27: 0.006 | J27: 0.99
A28: 0.008 | B28: 1.36 | C28: 0.008 | D28: 1.27 | E28: 0.008 | F28: 1.17 | G28: 0.008 | H28: 1.07 | I28: 0.008 | J28: 0.97
A29: 0.01 | B29: 1.35 | C29: 0.01 | D29: 1.25 | E29: 0.01 | F29: 1.15 | G29: 0.01 | H29: 1.05 | I29: 0.01 | J29: 0.95
A30: 0.015 | B30: 1.34 | C30: 0.015 | D30: 1.23 | E30: 0.015 | F30: 1.13 | G30: 0.015 | H30: =+H29-0.05 -> 1 | I30: 0.015 | J30: =+J29-0.04 -> 0.91
A31: 0.02 | B31: 1.33 | C31: 0.02 | D31: 1.21 | E31: 0.02 | F31: 1.11 | G31: 0.02 | H31: =+H30-0.05 -> 0.95 | I31: 0.02 | J31: =+J30-0.04 -> 0.87
A32: 0.03 | B32: 1.32 | C32: 0.03 | D32: 1.19 | E32: 0.03 | F32: 1.09 | G32: 0.03 | H32: 0.9 | I32: 0.03 | J32: 0.83
A33: 0.04 | B33: 1.31 | C33: 0.04 | D33: 1.17 | E33: 0.04 | F33: 1.07 | G33: 0.04 | H33: 0.85 | I33: 0.04 | J33: 0.79
A34: 0.05 | B34: 1.3 | C34: 0.05 | D34: 1.15 | E34: 0.05 | F34: 1.05 | G34: 0.05 | H34: 0.8 | I34: 0.05 | J34: 0.75
A35: 0.06 | B35: =+B34-0.005 -> 1.295 | C35: 0.06 | D35: =+D34-0.0075 -> 1.1425 | E35: 0.06 | F35: =+F34-0.0125 -> 1.0375 | G35: 0.06 | H35: =+H34-0.01 -> 0.79 | I35: 0.06 | J35: =+J34-0.0175 -> 0.7325
A36: 0.07 | B36: =+B35-0.005 -> 1.29 | C36: 0.07 | D36: =+D35-0.0075 -> 1.135 | E36: 0.07 | F36: =+F35-0.0125 -> 1.025 | G36: 0.07 | H36: =+H35-0.01 -> 0.78 | I36: 0.07 | J36: =+J35-0.0175 -> 0.715
A37: 0.08 | B37: 1.285 | C37: 0.08 | D37: 1.1275 | E37: 0.08 | F37: 1.0125 | G37: 0.08 | H37: 0.77 | I37: 0.08 | J37: 0.6975
A38: 0.09 | B38: 1.28 | C38: 0.09 | D38: 1.12 | E38: 0.09 | F38: 1 | G38: 0.09 | H38: 0.76 | I38: 0.09 | J38: 0.68
A39: 0.1 | B39: 1.275 | C39: 0.1 | D39: 1.1125 | E39: 0.1 | F39: 0.9875 | G39: 0.1 | H39: 0.75 | I39: 0.1 | J39: 0.6625
A40: 0.11 | B40: 1.27 | C40: 0.11 | D40: 1.105 | E40: 0.11 | F40: 0.975 | G40: 0.11 | H40: 0.74 | I40: 0.11 | J40: 0.645
A41: 0.12 | B41: 1.265 | C41: 0.12 | D41: 1.0975 | E41: 0.12 | F41: 0.9625 | G41: 0.12 | H41: 0.73 | I41: 0.12 | J41: 0.6275
A42: 0.13 | B42: 1.26 | C42: 0.13 | D42: 1.09 | E42: 0.13 | F42: 0.95 | G42: 0.13 | H42: 0.72 | I42: 0.13 | J42: 0.61
A43: 0.14 | B43: 1.255 | C43: 0.14 | D43: 1.0825 | E43: 0.14 | F43: 0.9375 | G43: 0.14 | H43: 0.71 | I43: 0.14 | J43: 0.5925
A44: 0.15 | B44: 1.25 | C44: 0.15 | D44: 1.075 | E44: 0.15 | F44: 0.925 | G44: 0.15 | H44: 0.7 | I44: 0.15 | J44: 0.575
A45: 0.16 | B45: 1.245 | C45: 0.16 | D45: 1.0675 | E45: 0.16 | F45: 0.9125 | G45: 0.16 | H45: 0.69 | I45: 0.16 | J45: 0.5575
A46: 0.17 | B46: 1.24 | C46: 0.17 | D46: 1.06 | E46: 0.17 | F46: 0.9 | G46: 0.17 | H46: 0.68 | I46: 0.17 | J46: 0.54
A47: 0.18 | B47: 1.235 | C47: 0.18 | D47: 1.0525 | E47: 0.18 | F47: 0.8875 | G47: 0.18 | H47: 0.67 | I47: 0.18 | J47: 0.5225
A48: 0.19 | B48: 1.23 | C48: 0.19 | D48: 1.045 | E48: 0.19 | F48: 0.875 | G48: 0.19 | H48: 0.66 | I48: 0.19 | J48: 0.505
A49: 0.2 | B49: 1.225 | C49: 0.2 | D49: 1.0375 | E49: 0.2 | F49: 0.8625 | G49: 0.2 | H49: 0.65 | I49: 0.2 | J49: 0.4875
A50: 0.21 | B50: 1.22 | C50: 0.21 | D50: 1.03 | E50: 0.21 | F50: 0.85 | G50: 0.21 | H50: 0.64 | I50: 0.21 | J50: 0.47
A51: 0.22 | B51: 1.215 | C51: 0.22 | D51: 1.0225 | E51: 0.22 | F51: 0.8375 | G51: 0.22 | H51: 0.63 | I51: 0.22 | J51: 0.4525
A52: 0.23 | B52: 1.21 | C52: 0.23 | D52: 1.015 | E52: 0.23 | F52: 0.825 | G52: 0.23 | H52: 0.62 | I52: 0.23 | J52: 0.435
A53: 0.24 | B53: 1.205 | C53: 0.24 | D53: 1.0075 | E53: 0.24 | F53: 0.8125 | G53: 0.24 | H53: 0.61 | I53: 0.24 | J53: 0.4175
A54: 0.25 | B54: 1.2 | C54: 0.25 | D54: 1 | E54: 0.25 | F54: 0.8 | G54: 0.25 | H54: 0.6 | I54: 0.25 | J54: 0.4

Sheet REPORTE
C2: DISEÑO DE PAVIMENTO FLEXIBLE
C3: Diseño de espesores de Pavimento de acuerdo a:
C4: 1993 AASHTO Guide for Design of Pavements Structures
D10: Empresa: | E10: ='PROJECT ID'!G6 -> GOBIERNO REGIONAL TUMBES
D12: Cliente: | E12: ='PROJECT ID'!G8 -> GOBIERNO REGIONAL TUMBES
D14: Descripcion del Proyecto: | E14: ='PROJECT ID'!G10 -> CARPETA AFIRMADA
D16: Ubicacion: | E16: ='PROJECT ID'!G13 -> HUASIMO - CABO INGA
D18: Ingeniero: | E18: ='PROJECT ID'!G16 -> 0
D22: Diseño de Pavimento Flexible
D24: Número Estructural | E24: =Diseño!J40 -> 1.3826 | H24: Módulo Resiliente (Psi) | J24: =Diseño!F28 -> 7157.011371
D25: Design ESALs | E25: =Diseño!F13 -> 7801.355803 | H25: Serviciabilidad Inicial | J25: =Diseño!F16 -> 4.2
D26: Confiabilidad | E26: =Diseño!F14 -> 0.75 | H26: Serviciabilidad Final | J26: =Diseño!F17 -> 2
D27: Desviación Estandar | E27: =Diseño!F15 -> -0.674
D30: Diseño de Espesores de Pavimento
D32: CAPA DE MATERIAL | E32: Coeficiente de Capa (a) | F32: Coeficiente de Drenaje (m) | G32: ESPESOR (Pulg) | H32: Numero Estructural de Capa (SN) | I32: ESPESOR (cm) | J32: Numero Estructural de Capa (SN)
D34: Asfalto | E34: =Diseño!F45 -> 0.13005851 | F34: =Diseño!G45 -> 1 | G34: =Diseño!H45 -> 8 | H34: =Diseño!I45 -> 1.04 | I34: =Diseño!J45 -> 20 | J34: =Diseño!K45 -> 2.601170199
D35: Base Granular | E35: =Diseño!F46 -> 0.13005851 | F35: =Diseño!G46 -> 1 | G35: =Diseño!H46 -> 2 | H35: =Diseño!I46 -> 0.26 | I35: =Diseño!J46 -> 5 | J35: =Diseño!K46 -> 0.6502925499
D36: Sub Base Granular | E36: =Diseño!F47 -> 0.13005851 | F36: =Diseño!G47 -> 1 | G36: =Diseño!H47 -> 2 | H36: =Diseño!I47 -> 0.26 | I36: =Diseño!J47 -> 5 | J36: =Diseño!K47 -> 0.6502925499
H41: =SUM(H34:H40) -> 1.56 | J41: =SUM(J34:J40) -> 3.901755299

Sheet F´c (Mpa)
E14: Resistencia a la compresion (Base estabilizada con cemento)
E16: Especificaciones adecuadas:
E17: •Suelos Finos (Res. = 2 – 2,4 MPa ; Retracción = 525 x 10-6 )
E18: •Suelos Gruesos (Res. = 3,1MPa ; Retracción = 300 x 10-6 )
E20: Se determina en laboratorio
